[Event "*** Titled Tuesday Blitz"]
[Site "Chess.com"]
[Date "2020.05.12"]
[Round "8"]
[White "gui_borba"]
[Black "arminmusovic"]
[Result "1-0"]
[WhiteElo "2347"]
[BlackElo "2524"]
[TimeControl "180+1"]
[EndTime "11:32:52 PDT"]
[Termination "gui_borba won by resignation"]

1. d4 {[%clk 0:03:00.9]} 1... d5 {[%clk 0:03:00.2]} 2. Bf4 {[%clk 0:03:01.2]}
2... c5 {[%clk 0:03:01.1]} 3. e3 {[%clk 0:03:01.6]} 3... Nc6 {[%clk 0:03:01.7]}
4. c3 {[%clk 0:03:01.7]} 4... a6 {[%clk 0:03:02]} 5. Nf3 {[%clk 0:03:01.3]} 5...
f6 {[%clk 0:03:02.6]} 6. Nbd2 {[%clk 0:02:59.8]} 6... Bg4 {[%clk 0:03:02.5]} 7.
Bd3 {[%clk 0:02:57.1]} 7... e6 {[%clk 0:03:00.6]} 8. Be2 {[%clk 0:02:50.1]} 8...
Bd6 {[%clk 0:02:59.6]} 9. O-O {[%clk 0:02:48.9]} 9... Bxf4 {[%clk 0:02:59.3]}
10. exf4 {[%clk 0:02:49.8]} 10... Nge7 {[%clk 0:02:58.9]} 11. Re1 {[%clk
0:02:43.9]} 11... cxd4 {[%clk 0:02:57.6]} 12. Nxd4 {[%clk 0:02:43.3]} 12... Bxe2
{[%clk 0:02:53.2]} 13. Qxe2 {[%clk 0:02:44.2]} 13... e5 {[%clk 0:02:48.9]} 14.
fxe5 {[%clk 0:02:42.1]} 14... fxe5 {[%clk 0:02:49.1]} 15. Nxc6 {[%clk
0:02:40.7]} 15... Nxc6 {[%clk 0:02:49.3]} 16. Qh5+ {[%clk 0:02:28.6]} 16... g6
{[%clk 0:02:23.3]} 17. Qh6 {[%clk 0:02:07.3]} 17... Qf6 {[%clk 0:02:23.3]} 18.
c4 {[%clk 0:02:03.5]} 18... dxc4 {[%clk 0:02:12.9]} 19. Nxc4 {[%clk 0:02:02.3]}
19... O-O-O {[%clk 0:02:12]} 20. Rad1 {[%clk 0:01:54.9]} 20... Nd4 {[%clk
0:01:58.9]} 21. Qe3 {[%clk 0:01:39.5]} 21... Rhe8 {[%clk 0:01:47.4]} 22. h3
{[%clk 0:01:20.9]} 22... Kb8 {[%clk 0:01:41.6]} 23. Nxe5 {[%clk 0:01:11.3]}
23... Rxe5 {[%clk 0:01:37.2]} 24. Qxe5+ {[%clk 0:01:07.8]} 24... Qxe5 {[%clk
0:01:38.1]} 25. Rxe5 {[%clk 0:01:08.4]} 25... Nf3+ {[%clk 0:01:37.8]} 26. gxf3
{[%clk 0:01:08.3]} 26... Rxd1+ {[%clk 0:01:38.5]} 27. Kg2 {[%clk 0:01:03.8]}
27... Rd2 {[%clk 0:01:39]} 28. Re7 {[%clk 0:01:03.8]} 28... Rxb2 {[%clk
0:01:37.7]} 29. Rxh7 {[%clk 0:01:03.9]} 29... Rxa2 {[%clk 0:01:34]} 30. Rg7
{[%clk 0:01:04.3]} 30... a5 {[%clk 0:01:34.4]} 31. Rxg6 {[%clk 0:01:04.7]} 31...
a4 {[%clk 0:01:35.1]} 32. h4 {[%clk 0:01:04.3]} 32... Ka7 {[%clk 0:01:34.6]} 33.
h5 {[%clk 0:01:04.2]} 33... Rc2 {[%clk 0:01:33.1]} 34. h6 {[%clk 0:00:55.8]}
34... Rc8 {[%clk 0:01:29]} 35. f4 {[%clk 0:00:52.8]} 35... a3 {[%clk 0:01:29]}
36. Rg3 {[%clk 0:00:52.5]} 36... b5 {[%clk 0:01:12.3]} 37. Rxa3+ {[%clk
0:00:51.8]} 37... Kb6 {[%clk 0:01:12.9]} 38. Kf1 {[%clk 0:00:40.9]} 38... b4
{[%clk 0:01:12.7]} 39. Rh3 {[%clk 0:00:40.5]} 39... Kc5 {[%clk 0:01:11]} 40. Ke2
{[%clk 0:00:39.9]} 40... Kd4 {[%clk 0:01:10.6]} 41. h7 {[%clk 0:00:40.1]} 41...
Rh8 {[%clk 0:01:10.1]} 42. Kd2 {[%clk 0:00:39.7]} 42... b3 {[%clk 0:01:06.8]}
43. Kc1 {[%clk 0:00:36.8]} 43... Ke4 {[%clk 0:00:56.4]} 44. Rh4 {[%clk
0:00:37.1]} 44... Kd3 {[%clk 0:00:54.5]} 45. Kb2 {[%clk 0:00:37.3]} 45... Kc4
{[%clk 0:00:54.8]} 46. f5+ {[%clk 0:00:34.2]} 46... Kd5 {[%clk 0:00:54.1]} 47.
Kxb3 {[%clk 0:00:34.8]} 47... Ke5 {[%clk 0:00:54.6]} 48. Rh5 {[%clk 0:00:35.2]}
48... Kf6 {[%clk 0:00:54.7]} 49. Kc4 {[%clk 0:00:34.3]} 49... Kg7 {[%clk
0:00:54.8]} 50. Kd4 {[%clk 0:00:34.2]} 50... Rd8+ {[%clk 0:00:53.4]} 51. Ke5
{[%clk 0:00:34.2]} 51... Re8+ {[%clk 0:00:53.1]} 52. Kf4 {[%clk 0:00:34.5]}
52... Rh8 {[%clk 0:00:51.9]} 53. Kg5 {[%clk 0:00:34.8]} 53... Kf7 {[%clk
0:00:51]} 54. f6 {[%clk 0:00:33.2]} 54... Kf8 {[%clk 0:00:48.9]} 55. Kg6 {[%clk
0:00:33.2]} 55... Ke8 {[%clk 0:00:48.4]} 56. Ra5 {[%clk 0:00:33.1]} 56... Kd7
{[%clk 0:00:47.2]} 57. Kg7 {[%clk 0:00:30.5]} 57... Rxh7+ {[%clk 0:00:46.7]} 1-0

[Event "*** Titled Tuesday Blitz"]
[Site "Chess.com"]
[Date "2020.05.12"]
[Round "8"]
[White "viditchess"]
[Black "Anuar_Is"]
[Result "1/2-1/2"]
[WhiteElo "2963"]
[BlackElo "2818"]
[TimeControl "180+1"]
[EndTime "11:32:53 PDT"]
[Termination "Game drawn by repetition"]

1. d4 {[%clk 0:03:00.9]} 1... Nf6 {[%clk 0:02:59.7]} 2. c4 {[%clk 0:03:01.2]}
2... g6 {[%clk 0:03:00.1]} 3. Nc3 {[%clk 0:03:00.9]} 3... Bg7 {[%clk 0:03:00.3]}
4. g3 {[%clk 0:03:00.6]} 4... O-O {[%clk 0:02:59.9]} 5. Bg2 {[%clk 0:03:00.9]}
5... c5 {[%clk 0:02:59.8]} 6. dxc5 {[%clk 0:03:00.6]} 6... Qa5 {[%clk
0:02:59.2]} 7. Qa4 {[%clk 0:03:00.8]} 7... Qxc5 {[%clk 0:02:58.6]} 8. Be3 {[%clk
0:03:01]} 8... Qh5 {[%clk 0:02:51.7]} 9. h3 {[%clk 0:02:55.2]} 9... Nc6 {[%clk
0:02:44.9]} 10. Nf3 {[%clk 0:02:49.7]} 10... d6 {[%clk 0:02:41.4]} 11. c5 {[%clk
0:02:28.1]} 11... Nd5 {[%clk 0:02:11.6]} 12. Nxd5 {[%clk 0:02:05.4]} 12... Qxd5
{[%clk 0:02:12.5]} 13. Rd1 {[%clk 0:02:04.3]} 13... Qe6 {[%clk 0:02:12.6]} 14.
cxd6 {[%clk 0:02:03.7]} 14... exd6 {[%clk 0:02:13.2]} 15. Rd2 {[%clk 0:01:56.2]}
15... Ne5 {[%clk 0:02:02.4]} 16. Nxe5 {[%clk 0:01:51.3]} 16... Bxe5 {[%clk
0:01:53.2]} 17. Bh6 {[%clk 0:01:39.8]} 17... Re8 {[%clk 0:01:50.5]} 18. O-O
{[%clk 0:01:28.5]} 18... Bd7 {[%clk 0:01:49.7]} 19. Qb3 {[%clk 0:01:20]} 19...
Bc6 {[%clk 0:01:47.8]} 20. Qxe6 {[%clk 0:01:16.5]} 20... Rxe6 {[%clk 0:01:43]}
21. Rfd1 {[%clk 0:01:13.8]} 21... Rae8 {[%clk 0:01:33.5]} 22. e3 {[%clk
0:01:04.6]} 22... Bf6 {[%clk 0:01:23.2]} 23. Bxc6 {[%clk 0:00:47.4]} 23... bxc6
{[%clk 0:01:22.5]} 24. Rxd6 {[%clk 0:00:46.8]} 24... Bxb2 {[%clk 0:01:19.4]} 25.
Rxe6 {[%clk 0:00:44.2]} 25... fxe6 {[%clk 0:01:20.3]} 26. Rd7 {[%clk 0:00:33.9]}
26... Rc8 {[%clk 0:01:15.5]} 27. Rxa7 {[%clk 0:00:32.7]} 27... c5 {[%clk
0:01:15.8]} 28. Rb7 {[%clk 0:00:33.2]} 28... Bf6 {[%clk 0:01:07.6]} 29. Rb1
{[%clk 0:00:17.6]} 29... c4 {[%clk 0:01:07.2]} 30. Rc1 {[%clk 0:00:17.8]} 30...
c3 {[%clk 0:01:07.4]} 31. Kf1 {[%clk 0:00:15.8]} 31... Rb8 {[%clk 0:01:07.5]}
32. e4 {[%clk 0:00:14.9]} 32... Rb2 {[%clk 0:01:06.6]} 33. a4 {[%clk 0:00:15.3]}
33... g5 {[%clk 0:00:58.2]} 34. h4 {[%clk 0:00:14.8]} 34... gxh4 {[%clk
0:00:58.2]} 35. gxh4 {[%clk 0:00:15.1]} 35... Bxh4 {[%clk 0:00:57.8]} 36. Be3
{[%clk 0:00:15.2]} 36... Bf6 {[%clk 0:00:57.4]} 37. a5 {[%clk 0:00:14.1]} 37...
Ra2 {[%clk 0:00:57]} 38. f4 {[%clk 0:00:14]} 38... c2 {[%clk 0:00:51.8]} 39. Ke2
{[%clk 0:00:11.2]} 39... Kf7 {[%clk 0:00:50.8]} 40. Kd3 {[%clk 0:00:10.8]} 40...
Ra3+ {[%clk 0:00:50.6]} 41. Ke2 {[%clk 0:00:10.6]} 41... Ra2 {[%clk 0:00:48.9]}
42. Kd3 {[%clk 0:00:10.6]} 42... Ra3+ {[%clk 0:00:47.6]} 43. Ke2 {[%clk
0:00:11.1]} 43... Ra2 {[%clk 0:00:32.1]} 1/2-1/2

[Event "*** Titled Tuesday Blitz"]
[Site "Chess.com"]
[Date "2020.05.12"]
[Round "8"]
[White "Riazantsev"]
[Black "serhanberat_ozdemir"]
[Result "0-1"]
[WhiteElo "2641"]
[BlackElo "2526"]
[TimeControl "180+1"]
[EndTime "11:32:53 PDT"]
[Termination "serhanberat_ozdemir won by resignation"]

1. e4 {[%clk 0:03:00.9]} 1... c5 {[%clk 0:02:58.5]} 2. b3 {[%clk 0:02:58.9]}
2... e6 {[%clk 0:02:53.4]} 3. Bb2 {[%clk 0:02:58.3]} 3... b6 {[%clk 0:02:53.1]}
4. Nc3 {[%clk 0:02:57.2]} 4... Bb7 {[%clk 0:02:53.5]} 5. f4 {[%clk 0:02:56.4]}
5... d5 {[%clk 0:02:51.6]} 6. Bb5+ {[%clk 0:02:49.9]} 6... Nc6 {[%clk
0:02:39.7]} 7. Nf3 {[%clk 0:02:47.4]} 7... Be7 {[%clk 0:02:24.2]} 8. Ne5 {[%clk
0:02:45.5]} 8... Qd6 {[%clk 0:02:08.2]} 9. exd5 {[%clk 0:02:19.7]} 9... exd5
{[%clk 0:02:05.8]} 10. d4 {[%clk 0:02:20.3]} 10... Nf6 {[%clk 0:01:59.2]} 11.
dxc5 {[%clk 0:02:17.1]} 11... bxc5 {[%clk 0:01:58.6]} 12. O-O {[%clk 0:02:14.1]}
12... O-O {[%clk 0:01:56.6]} 13. Bxc6 {[%clk 0:02:09.1]} 13... Bxc6 {[%clk
0:01:57.5]} 14. Nxc6 {[%clk 0:02:09.4]} 14... Qxc6 {[%clk 0:01:57.1]} 15. Qd3
{[%clk 0:02:07.8]} 15... d4 {[%clk 0:01:45.5]} 16. Ne2 {[%clk 0:02:03.2]} 16...
Nd5 {[%clk 0:01:40.5]} 17. Ng3 {[%clk 0:02:00.2]} 17... Ne3 {[%clk 0:01:35.7]}
18. Rf3 {[%clk 0:01:59.3]} 18... Rad8 {[%clk 0:01:14.4]} 19. Nh5 {[%clk
0:01:58.7]} 19... g6 {[%clk 0:01:08.3]} 20. Ng3 {[%clk 0:01:52]} 20... f5 {[%clk
0:01:01.5]} 21. Re1 {[%clk 0:01:51.4]} 21... Bf6 {[%clk 0:00:59.1]} 22. Nf1
{[%clk 0:01:35.9]} 22... Nxf1 {[%clk 0:00:53.2]} 23. Rfxf1 {[%clk 0:01:35.4]}
23... Qd5 {[%clk 0:00:35.1]} 24. Bc1 {[%clk 0:01:27.4]} 24... Rfe8 {[%clk
0:00:20.6]} 25. Bd2 {[%clk 0:01:27.6]} 25... Re4 {[%clk 0:00:18.9]} 26. g3
{[%clk 0:01:24.2]} 26... Rde8 {[%clk 0:00:16.6]} 27. a4 {[%clk 0:01:23.8]} 27...
h5 {[%clk 0:00:14.6]} 28. h4 {[%clk 0:01:16.8]} 28... Kh7 {[%clk 0:00:11.8]} 29.
Qa6 {[%clk 0:01:11.6]} 29... Bg7 {[%clk 0:00:09.3]} 30. Qxa7 {[%clk 0:01:06.9]}
30... Re2 {[%clk 0:00:08]} 31. Rxe2 {[%clk 0:01:03.3]} 31... Rxe2 {[%clk
0:00:08.9]} 32. Rf2 {[%clk 0:01:04.2]} 32... Qe4 {[%clk 0:00:06.6]} 33. Rxe2
{[%clk 0:00:31.7]} 33... Qxe2 {[%clk 0:00:07.5]} 34. Qa5 {[%clk 0:00:32.3]}
34... d3 {[%clk 0:00:06.4]} 35. Bc3 {[%clk 0:00:23.2]} 35... dxc2 {[%clk
0:00:06.4]} 0-1

[Event "*** Titled Tuesday Blitz"]
[Site "Chess.com"]
[Date "2020.05.12"]
[Round "8"]
[White "IMinTheWings"]
[Black "Andrii_Prydun"]
[Result "0-1"]
[WhiteElo "2222"]
[BlackElo "2432"]
[TimeControl "180+1"]
[EndTime "11:32:53 PDT"]
[Termination "Andrii_Prydun won on time"]

1. Nf3 {[%clk 0:03:00.9]} 1... Nf6 {[%clk 0:02:40.1]} 2. e3 {[%clk 0:02:58.5]}
2... d6 {[%clk 0:02:40.1]} 3. b3 {[%clk 0:02:55.9]} 3... Bg4 {[%clk 0:02:40.4]}
4. Bb2 {[%clk 0:02:56]} 4... Nbd7 {[%clk 0:02:40.5]} 5. Be2 {[%clk 0:02:56]}
5... e6 {[%clk 0:02:40.5]} 6. d4 {[%clk 0:02:56]} 6... Be7 {[%clk 0:02:40.9]} 7.
Nbd2 {[%clk 0:02:56.2]} 7... O-O {[%clk 0:02:41.2]} 8. O-O {[%clk 0:02:55.9]}
8... Re8 {[%clk 0:02:38.3]} 9. e4 {[%clk 0:02:54.5]} 9... c6 {[%clk 0:02:36.2]}
10. h3 {[%clk 0:02:52.9]} 10... Bh5 {[%clk 0:02:35.2]} 11. c4 {[%clk 0:02:49.4]}
11... e5 {[%clk 0:02:33.1]} 12. g4 {[%clk 0:02:29]} 12... Bg6 {[%clk 0:02:30.3]}
13. Bd3 {[%clk 0:02:28.4]} 13... exd4 {[%clk 0:02:29.2]} 14. Bxd4 {[%clk
0:02:27.9]} 14... Ne5 {[%clk 0:02:27.7]} 15. Bc2 {[%clk 0:02:14.8]} 15... Qc7
{[%clk 0:02:11.5]} 16. Nh2 {[%clk 0:02:01]} 16... h6 {[%clk 0:01:30.3]} 17. f4
{[%clk 0:01:56.9]} 17... Ned7 {[%clk 0:01:27.2]} 18. Nhf3 {[%clk 0:01:52.6]}
18... d5 {[%clk 0:01:20.7]} 19. e5 {[%clk 0:01:51]} 19... Ne4 {[%clk 0:01:15.8]}
20. f5 {[%clk 0:01:49.2]} 20... Nxd2 {[%clk 0:01:15]} 21. Qxd2 {[%clk
0:01:49.5]} 21... Bh7 {[%clk 0:01:13.2]} 22. Rac1 {[%clk 0:01:12.3]} 22... c5
{[%clk 0:01:12.8]} 23. cxd5 {[%clk 0:01:06.4]} 23... cxd4 {[%clk 0:01:12.6]} 24.
f6 {[%clk 0:00:57.8]} 24... d3 {[%clk 0:01:06.6]} 25. Bxd3 {[%clk 0:00:40.5]}
25... Bc5+ {[%clk 0:01:05.9]} 26. Kg2 {[%clk 0:00:36.7]} 26... Bxd3 {[%clk
0:01:00]} 27. fxg7 {[%clk 0:00:27.2]} 27... Bxf1+ {[%clk 0:00:58.4]} 28. Rxf1
{[%clk 0:00:19.8]} 28... Qb6 {[%clk 0:00:50.5]} 29. e6 {[%clk 0:00:19.1]} 29...
Rxe6 {[%clk 0:00:45.1]} 30. dxe6 {[%clk 0:00:19.1]} 30... Qxe6 {[%clk
0:00:45.7]} 31. Re1 {[%clk 0:00:18.4]} 31... Qc6 {[%clk 0:00:45.1]} 32. g5
{[%clk 0:00:14.3]} 32... hxg5 {[%clk 0:00:36.8]} 33. Qxg5 {[%clk 0:00:13.1]}
33... Qg6 {[%clk 0:00:36.8]} 34. Qxg6 {[%clk 0:00:12.9]} 34... fxg6 {[%clk
0:00:37.6]} 35. Rd1 {[%clk 0:00:11.3]} 35... Nf6 {[%clk 0:00:37.4]} 36. Rc1
{[%clk 0:00:08.4]} 36... b6 {[%clk 0:00:36.8]} 37. Rc4 {[%clk 0:00:07.4]} 37...
Kxg7 {[%clk 0:00:34.8]} 38. b4 {[%clk 0:00:07.9]} 38... Bd6 {[%clk 0:00:34.6]}
39. Nd4 {[%clk 0:00:08]} 39... Re8 {[%clk 0:00:33.6]} 40. Rc6 {[%clk 0:00:07.3]}
40... Be5 {[%clk 0:00:31]} 41. Nf3 {[%clk 0:00:06.2]} 41... Bf4 {[%clk
0:00:29.8]} 42. Rc4 {[%clk 0:00:05.8]} 42... Re2+ {[%clk 0:00:29.4]} 43. Kf1
{[%clk 0:00:05.9]} 43... Re4 {[%clk 0:00:29.7]} 44. Rc7+ {[%clk 0:00:05]} 44...
Bxc7 {[%clk 0:00:28.7]} 0-1

[Event "*** Titled Tuesday Blitz"]
[Site "Chess.com"]
[Date "2020.05.12"]
[Round "8"]
[White "RitvarsReimanis"]
[Black "Nara_Kh"]
[Result "1-0"]
[WhiteElo "2480"]
[BlackElo "2312"]
[TimeControl "180+1"]
[EndTime "11:32:54 PDT"]
[Termination "RitvarsReimanis won by resignation"]

1. d4 {[%clk 0:03:00.7]} 1... d6 {[%clk 0:02:59.7]} 2. Nf3 {[%clk 0:02:59.4]}
2... g6 {[%clk 0:02:59.6]} 3. c4 {[%clk 0:02:59.6]} 3... Bg7 {[%clk 0:02:59.7]}
4. Nc3 {[%clk 0:03:00]} 4... Nf6 {[%clk 0:02:59.9]} 5. e4 {[%clk 0:03:00.4]}
5... O-O {[%clk 0:02:59.8]} 6. Be2 {[%clk 0:03:00.7]} 6... e5 {[%clk 0:02:59.4]}
7. O-O {[%clk 0:03:01.2]} 7... Nc6 {[%clk 0:02:59.2]} 8. d5 {[%clk 0:03:01]}
8... Ne7 {[%clk 0:02:59.2]} 9. Kh1 {[%clk 0:03:01.6]} 9... Nd7 {[%clk 0:02:56]}
10. g4 {[%clk 0:03:01.3]} 10... Kh8 {[%clk 0:02:46.6]} 11. Rg1 {[%clk
0:02:52.3]} 11... a5 {[%clk 0:02:43]} 12. g5 {[%clk 0:02:45.7]} 12... Nc5 {[%clk
0:02:34.1]} 13. Ne1 {[%clk 0:02:38]} 13... f5 {[%clk 0:02:30.9]} 14. gxf6 {[%clk
0:02:34.9]} 14... Bxf6 {[%clk 0:02:23.7]} 15. Nd3 {[%clk 0:02:17.4]} 15... Ng8
{[%clk 0:02:01]} 16. Nxc5 {[%clk 0:02:14.3]} 16... dxc5 {[%clk 0:02:01.9]} 17.
Bg4 {[%clk 0:02:12.6]} 17... Bh4 {[%clk 0:01:54.6]} 18. f3 {[%clk 0:01:58.4]}
18... Nf6 {[%clk 0:01:50.1]} 19. Bxc8 {[%clk 0:01:57.3]} 19... Qxc8 {[%clk
0:01:49.4]} 20. Bh6 {[%clk 0:01:48.4]} 20... Rf7 {[%clk 0:01:44.4]} 21. Qf1
{[%clk 0:01:44]} 21... Nh5 {[%clk 0:01:43.2]} 22. Ne2 {[%clk 0:01:23.2]} 22...
Qd7 {[%clk 0:01:27.1]} 23. Qg2 {[%clk 0:01:21]} 23... g5 {[%clk 0:01:03]} 24.
Qg4 {[%clk 0:01:09.9]} 24... Qxg4 {[%clk 0:00:59]} 25. fxg4 {[%clk 0:01:10.2]}
25... Nf4 {[%clk 0:00:50.9]} 26. Ng3 {[%clk 0:01:10.4]} 26... Bxg3 {[%clk
0:00:44.5]} 27. hxg3 {[%clk 0:01:10.2]} 27... Nh3 {[%clk 0:00:44.7]} 28. Rgf1
{[%clk 0:01:06.6]} 28... Kg8 {[%clk 0:00:36.9]} 29. Kg2 {[%clk 0:01:06.2]} 29...
Ra6 {[%clk 0:00:33.8]} 30. Rxf7 {[%clk 0:01:00.4]} 30... Kxf7 {[%clk 0:00:34.7]}
31. Rf1+ {[%clk 0:00:59.6]} 31... Kg8 {[%clk 0:00:29.2]} 32. Bf8 {[%clk
0:00:51.3]} 32... Nf4+ {[%clk 0:00:21.3]} 33. gxf4 {[%clk 0:00:51.2]} 33... exf4
{[%clk 0:00:20.3]} 34. Bxc5 {[%clk 0:00:50]} 34... b6 {[%clk 0:00:19.9]} 35. Ba3
{[%clk 0:00:48.4]} 35... Kf7 {[%clk 0:00:19.9]} 36. e5 {[%clk 0:00:47.3]} 36...
b5 {[%clk 0:00:19]} 37. e6+ {[%clk 0:00:38.9]} 37... Ke8 {[%clk 0:00:18.6]} 38.
b3 {[%clk 0:00:35.6]} 38... b4 {[%clk 0:00:18.2]} 39. Bb2 {[%clk 0:00:35.4]}
39... a4 {[%clk 0:00:18.4]} 40. Ra1 {[%clk 0:00:26.4]} 40... a3 {[%clk
0:00:14.5]} 41. Bf6 {[%clk 0:00:23.2]} 41... h6 {[%clk 0:00:11.5]} 42. Rh1
{[%clk 0:00:22.1]} 1-0

[Event "*** Titled Tuesday Blitz"]
[Site "Chess.com"]
[Date "2020.05.12"]
[Round "8"]
[White "BigAl"]
[Black "Kirill_Klukin"]
[Result "0-1"]
[WhiteElo "2472"]
[BlackElo "2691"]
[TimeControl "180+1"]
[EndTime "11:32:55 PDT"]
[Termination "Kirill_Klukin won by resignation"]

1. e4 {[%clk 0:03:00.9]} 1... c5 {[%clk 0:02:59.3]} 2. Nc3 {[%clk 0:03:00.9]}
2... Nc6 {[%clk 0:02:58.9]} 3. g3 {[%clk 0:03:01.4]} 3... g6 {[%clk 0:02:59.1]}
4. Bg2 {[%clk 0:03:01.7]} 4... Bg7 {[%clk 0:02:57.7]} 5. d3 {[%clk 0:03:02.6]}
5... e6 {[%clk 0:02:57.8]} 6. Be3 {[%clk 0:03:02.6]} 6... b6 {[%clk 0:02:57.7]}
7. f4 {[%clk 0:02:55.1]} 7... Nge7 {[%clk 0:02:57.5]} 8. Nf3 {[%clk 0:02:46.7]}
8... d5 {[%clk 0:02:56.1]} 9. Bf2 {[%clk 0:02:44.4]} 9... Bb7 {[%clk 0:02:54.3]}
10. O-O {[%clk 0:02:43.9]} 10... a6 {[%clk 0:02:53.4]} 11. exd5 {[%clk
0:02:37.1]} 11... exd5 {[%clk 0:02:52.4]} 12. Nh4 {[%clk 0:02:35.3]} 12... O-O
{[%clk 0:02:48.5]} 13. f5 {[%clk 0:02:33.2]} 13... Nd4 {[%clk 0:02:47.8]} 14.
fxg6 {[%clk 0:02:30.5]} 14... fxg6 {[%clk 0:02:47.8]} 15. Ne2 {[%clk 0:02:23.5]}
15... Nxe2+ {[%clk 0:02:38.3]} 16. Qxe2 {[%clk 0:02:22.7]} 16... Qd7 {[%clk
0:02:32.9]} 17. Rfe1 {[%clk 0:02:09.3]} 17... Rae8 {[%clk 0:02:32.5]} 18. Qe6+
{[%clk 0:02:02.5]} 18... Qxe6 {[%clk 0:02:29.5]} 19. Rxe6 {[%clk 0:02:03.4]}
19... Rf6 {[%clk 0:02:16.5]} 20. Rae1 {[%clk 0:01:58.5]} 20... Kf7 {[%clk
0:02:16]} 21. Nf3 {[%clk 0:01:43.2]} 21... h6 {[%clk 0:02:06.4]} 22. Rxf6+
{[%clk 0:01:30.9]} 22... Bxf6 {[%clk 0:02:06.1]} 23. Ne5+ {[%clk 0:01:29]} 23...
Bxe5 {[%clk 0:01:51.3]} 24. Rxe5 {[%clk 0:01:28.5]} 24... Nf5 {[%clk 0:01:52]}
25. Rxe8 {[%clk 0:01:09]} 25... Kxe8 {[%clk 0:01:52.9]} 26. c3 {[%clk
0:01:05.1]} 26... Ke7 {[%clk 0:01:51.8]} 27. g4 {[%clk 0:01:04.1]} 27... Ng7
{[%clk 0:01:50.3]} 28. Bg3 {[%clk 0:01:01.9]} 28... h5 {[%clk 0:01:49.7]} 29. h3
{[%clk 0:01:01.4]} 29... hxg4 {[%clk 0:01:48.2]} 30. hxg4 {[%clk 0:01:01.3]}
30... Ne6 {[%clk 0:01:49.1]} 31. Kf2 {[%clk 0:01:00.9]} 31... b5 {[%clk
0:01:47]} 32. Be5 {[%clk 0:00:58.6]} 32... Bc6 {[%clk 0:01:46.1]} 33. Kg3 {[%clk
0:00:58.4]} 33... Nd8 {[%clk 0:01:45.3]} 34. d4 {[%clk 0:00:57.2]} 34... Nf7
{[%clk 0:01:45.3]} 35. Bb8 {[%clk 0:00:55.9]} 35... cxd4 {[%clk 0:01:44.6]} 36.
cxd4 {[%clk 0:00:55.6]} 36... Ke6 {[%clk 0:01:45.1]} 37. Bf1 {[%clk 0:00:52.6]}
37... g5 {[%clk 0:01:41.4]} 38. Bd3 {[%clk 0:00:42.8]} 38... Nd6 {[%clk
0:01:39.4]} 39. Bxd6 {[%clk 0:00:41.9]} 39... Kxd6 {[%clk 0:01:37.2]} 40. Bf5
{[%clk 0:00:42.8]} 40... a5 {[%clk 0:01:37.3]} 41. Kf3 {[%clk 0:00:37.9]} 41...
b4 {[%clk 0:01:36.6]} 42. Ke3 {[%clk 0:00:37.7]} 42... Bb5 {[%clk 0:01:37.1]}
43. a3 {[%clk 0:00:36.2]} 43... bxa3 {[%clk 0:01:36.3]} 44. bxa3 {[%clk
0:00:36.1]} 44... Kc6 {[%clk 0:01:37.2]} 45. Kd2 {[%clk 0:00:35.6]} 45... Bc4
{[%clk 0:01:36.8]} 46. Kc3 {[%clk 0:00:36.5]} 46... Kb5 {[%clk 0:01:37.1]} 47.
Bd7+ {[%clk 0:00:35.6]} 47... Kb6 {[%clk 0:01:36.9]} 48. Be8 {[%clk 0:00:35.6]}
48... Be2 {[%clk 0:01:35.8]} 49. Bd7 {[%clk 0:00:34]} 49... Kc7 {[%clk
0:01:36.2]} 50. Bf5 {[%clk 0:00:33.4]} 50... Kc6 {[%clk 0:01:36.9]} 51. Kb3
{[%clk 0:00:33.2]} 51... Bd1+ {[%clk 0:01:32.4]} 52. Kc3 {[%clk 0:00:33.5]}
52... Kd6 {[%clk 0:01:32.5]} 53. Kd2 {[%clk 0:00:32.2]} 53... Ba4 {[%clk
0:01:32.5]} 54. Kc3 {[%clk 0:00:32.8]} 54... Bb5 {[%clk 0:01:32.9]} 55. Kd2
{[%clk 0:00:31.3]} 55... Bf1 {[%clk 0:01:32.4]} 56. Kc3 {[%clk 0:00:31.1]} 56...
Bg2 {[%clk 0:01:32.9]} 57. Kb3 {[%clk 0:00:30]} 57... Kc6 {[%clk 0:01:32.6]} 58.
Ka4 {[%clk 0:00:29]} 58... Kb6 {[%clk 0:01:33.2]} 59. Be6 {[%clk 0:00:29.1]}
59... Be4 {[%clk 0:01:33]} 60. Kb3 {[%clk 0:00:29.4]} 60... Kc6 {[%clk 0:01:33]}
61. Ka4 {[%clk 0:00:28.9]} 61... Kb6 {[%clk 0:01:28.8]} 62. Kb3 {[%clk
0:00:29.1]} 62... Bf3 {[%clk 0:01:29.6]} 63. Kc3 {[%clk 0:00:29.3]} 63... Kb5
{[%clk 0:01:29.5]} 64. Kb3 {[%clk 0:00:29.7]} 64... Bd1+ {[%clk 0:01:28.7]} 65.
Kb2 {[%clk 0:00:29.9]} 65... Kc4 {[%clk 0:01:28.3]} 66. Kc1 {[%clk 0:00:21.2]}
66... Bf3 {[%clk 0:01:27.8]} 67. Kb2 {[%clk 0:00:21.7]} 67... Kxd4 {[%clk
0:01:28]} 68. Kb3 {[%clk 0:00:22.6]} 68... Bd1+ {[%clk 0:01:28.1]} 69. Kb2
{[%clk 0:00:23]} 69... Ke5 {[%clk 0:01:27.3]} 70. Bf5 {[%clk 0:00:20.7]} 70...
Kf4 {[%clk 0:01:25.5]} 71. Kc3 {[%clk 0:00:21.1]} 71... Bxg4 {[%clk 0:01:25.3]}
72. Be6 {[%clk 0:00:22]} 72... Bf3 {[%clk 0:01:25.4]} 73. Kd4 {[%clk 0:00:21.4]}
73... g4 {[%clk 0:01:25.8]} 0-1